[Event "Late-Titled-Tuesday-Blitz-January-16-2024"]
[Site "Chess.com"]
[Date "2024.01.16"]
[Round "7"]
[White "Polish_fighter3000"]
[Black "AntonSmirnov"]
[Result "0-1"]
[WhiteElo "3102"]
[BlackElo "2968"]
[TimeControl "180+1"]
[EndTime "15:18:41 PST"]
[Termination "AntonSmirnov won by resignation"]

1. e4 {[%clk 0:03:00.9]} 1... e5 {[%clk 0:02:54]} 2. Nf3 {[%clk 0:03:00.5]} 2...
Nf6 {[%clk 0:02:53.8]} 3. Nxe5 {[%clk 0:02:59]} 3... d6 {[%clk 0:02:54.1]} 4.
Nf3 {[%clk 0:02:59.7]} 4... Nxe4 {[%clk 0:02:54.5]} 5. Nc3 {[%clk 0:03:00.4]}
5... Nxc3 {[%clk 0:02:54.6]} 6. dxc3 {[%clk 0:03:01.3]} 6... Be7 {[%clk
0:02:55.3]} 7. Be3 {[%clk 0:03:02]} 7... O-O {[%clk 0:02:55.1]} 8. Qd2 {[%clk
0:03:02.6]} 8... Nd7 {[%clk 0:02:55.5]} 9. O-O-O {[%clk 0:03:03.3]} 9... c6
{[%clk 0:02:56]} 10. Kb1 {[%clk 0:03:02]} 10... Re8 {[%clk 0:02:54]} 11. h4
{[%clk 0:02:59.5]} 11... d5 {[%clk 0:02:53]} 12. c4 {[%clk 0:02:49.2]} 12... Nf6
{[%clk 0:02:49.6]} 13. Qc3 {[%clk 0:02:33.2]} 13... Bg4 {[%clk 0:02:28.2]} 14.
Bd3 {[%clk 0:02:27.3]} 14... a5 {[%clk 0:02:18.8]} 15. a3 {[%clk 0:02:26.8]}
15... h6 {[%clk 0:02:13.1]} 16. Rhg1 {[%clk 0:02:00.9]} 16... Qc8 {[%clk
0:02:11.1]} 17. Qb3 {[%clk 0:01:42.7]} 17... a4 {[%clk 0:02:05.1]} 18. Qa2
{[%clk 0:01:37.3]} 18... Rd8 {[%clk 0:01:40.7]} 19. Bd4 {[%clk 0:01:32.4]} 19...
Be6 {[%clk 0:01:36.3]} 20. Rde1 {[%clk 0:01:29.6]} 20... c5 {[%clk 0:01:28.3]}
21. Bxf6 {[%clk 0:01:09.4]} 21... Bxf6 {[%clk 0:01:27.8]} 22. g4 {[%clk
0:01:10.1]} 22... Bxg4 {[%clk 0:01:21.6]} 23. Ne5 {[%clk 0:01:08.7]} 23... Bxe5
{[%clk 0:01:19.8]} 24. Rxe5 {[%clk 0:01:07.2]} 24... d4 {[%clk 0:01:20.3]} 25.
Ka1 {[%clk 0:00:58.9]} 25... Qc7 {[%clk 0:01:16.3]} 26. f4 {[%clk 0:00:50.6]}
26... f6 {[%clk 0:01:13.6]} 27. Ree1 {[%clk 0:00:45.8]} 27... Re8 {[%clk
0:01:12.8]} 28. Qb1 {[%clk 0:00:37.7]} 28... f5 {[%clk 0:01:13.1]} 29. Qc1
{[%clk 0:00:34.7]} 29... h5 {[%clk 0:01:08.5]} 30. Qd2 {[%clk 0:00:33.9]} 30...
b6 {[%clk 0:01:05.9]} 31. Qf2 {[%clk 0:00:27.6]} 31... Kh7 {[%clk 0:01:03.8]}
32. Kb1 {[%clk 0:00:16.9]} 32... Rad8 {[%clk 0:00:53.1]} 33. Kc1 {[%clk
0:00:16.6]} 33... Qf7 {[%clk 0:00:51.8]} 34. Rxe8 {[%clk 0:00:12.2]} 34... Rxe8
{[%clk 0:00:51.4]} 35. Re1 {[%clk 0:00:12.9]} 35... Rxe1+ {[%clk 0:00:46.8]} 36.
Qxe1 {[%clk 0:00:13.8]} 36... Qf6 {[%clk 0:00:47]} 37. Kb1 {[%clk 0:00:08.5]}
37... Qd6 {[%clk 0:00:46.3]} 38. Qf2 {[%clk 0:00:03.7]} 38... Qe6 {[%clk
0:00:46.3]} 39. Qg2 {[%clk 0:00:02.9]} 39... Qe3 {[%clk 0:00:34.4]} 40. Qc6
{[%clk 0:00:02.9]} 40... Qxf4 {[%clk 0:00:32.2]} 41. Qxb6 {[%clk 0:00:03.5]}
41... Qe5 {[%clk 0:00:31.5]} 42. Qc6 {[%clk 0:00:03.6]} 42... g6 {[%clk
0:00:28.6]} 43. Qxa4 {[%clk 0:00:03.3]} 43... f4 {[%clk 0:00:28]} 44. Qa7+
{[%clk 0:00:02.8]} 44... Kh6 {[%clk 0:00:28.2]} 45. Qa8 {[%clk 0:00:02.3]} 45...
Bf5 {[%clk 0:00:19.1]} 46. Qf8+ {[%clk 0:00:02.5]} 46... Kh7 {[%clk 0:00:17.9]}
47. Qf7+ {[%clk 0:00:02.8]} 47... Kh6 {[%clk 0:00:18.6]} 48. Qf8+ {[%clk
0:00:02.7]} 48... Kh7 {[%clk 0:00:19.1]} 49. Bxf5 {[%clk 0:00:02.5]} 49... gxf5
{[%clk 0:00:17.4]} 50. Qf7+ {[%clk 0:00:02.6]} 50... Kh6 {[%clk 0:00:17.7]} 51.
Qf8+ {[%clk 0:00:02.2]} 51... Kg6 {[%clk 0:00:18.2]} 52. Qg8+ {[%clk 0:00:02.5]}
52... Kf6 {[%clk 0:00:18.2]} 53. Qh8+ {[%clk 0:00:02.1]} 53... Ke6 {[%clk
0:00:18.5]} 54. Qe8+ {[%clk 0:00:01.8]} 54... Kd6 {[%clk 0:00:17.9]} 55. Qb8+
{[%clk 0:00:01.8]} 55... Ke6 {[%clk 0:00:18.4]} 56. Qe8+ {[%clk 0:00:02.3]}
56... Kd6 {[%clk 0:00:18.9]} 57. Qxe5+ {[%clk 0:00:01.9]} 57... Kxe5 {[%clk
0:00:19.5]} 58. Kc1 {[%clk 0:00:02.8]} 58... f3 {[%clk 0:00:17.6]} 59. Kd2
{[%clk 0:00:03.4]} 59... Kf4 {[%clk 0:00:18.3]} 60. Ke1 {[%clk 0:00:03.9]} 60...
Kg3 {[%clk 0:00:19.1]} 61. Kf1 {[%clk 0:00:04.5]} 61... Kxh4 {[%clk 0:00:19.5]}
62. Kf2 {[%clk 0:00:05.2]} 62... Kg4 {[%clk 0:00:20]} 63. a4 {[%clk 0:00:06.1]}
63... h4 {[%clk 0:00:20.6]} 64. a5 {[%clk 0:00:06.4]} 64... h3 {[%clk
0:00:21.5]} 65. Kg1 {[%clk 0:00:05]} 65... Kg3 {[%clk 0:00:20.8]} 66. a6 {[%clk
0:00:05.7]} 66... h2+ {[%clk 0:00:21.1]} 0-1

[Event "Late-Titled-Tuesday-Blitz-January-16-2024"]
[Site "Chess.com"]
[Date "2024.01.16"]
[Round "7"]
[White "GrotBchess"]
[Black "jmpion"]
[Result "0-1"]
[WhiteElo "2327"]
[BlackElo "2531"]
[TimeControl "180+1"]
[EndTime "15:18:49 PST"]
[Termination "jmpion won by checkmate"]

1. e4 {[%clk 0:03:00.9]} 1... c5 {[%clk 0:02:58.3]} 2. Nf3 {[%clk 0:03:00.8]}
2... d6 {[%clk 0:02:58.6]} 3. Bb5+ {[%clk 0:03:00.7]} 3... Nd7 {[%clk
0:02:58.2]} 4. c3 {[%clk 0:02:58.1]} 4... Nf6 {[%clk 0:02:57.5]} 5. Qe2 {[%clk
0:02:58.2]} 5... a6 {[%clk 0:02:56.2]} 6. Ba4 {[%clk 0:02:58.4]} 6... b5 {[%clk
0:02:55.7]} 7. Bc2 {[%clk 0:02:58.6]} 7... e5 {[%clk 0:02:52.5]} 8. O-O {[%clk
0:02:58.4]} 8... Be7 {[%clk 0:02:52.7]} 9. d4 {[%clk 0:02:58.6]} 9... cxd4
{[%clk 0:02:52.8]} 10. cxd4 {[%clk 0:02:58.1]} 10... O-O {[%clk 0:02:52.7]} 11.
dxe5 {[%clk 0:02:57.1]} 11... Nxe5 {[%clk 0:02:51.2]} 12. Nxe5 {[%clk
0:02:55.6]} 12... dxe5 {[%clk 0:02:52.1]} 13. Rd1 {[%clk 0:02:55.8]} 13... Qc7
{[%clk 0:02:46.2]} 14. Bg5 {[%clk 0:02:43.9]} 14... Bg4 {[%clk 0:02:42.1]} 15.
f3 {[%clk 0:02:41.6]} 15... Be6 {[%clk 0:02:22.5]} 16. Nc3 {[%clk 0:02:40.7]}
16... b4 {[%clk 0:02:18]} 17. Bxf6 {[%clk 0:02:39.7]} 17... Bc5+ {[%clk
0:02:06.8]} 18. Kh1 {[%clk 0:02:32.3]} 18... bxc3 {[%clk 0:02:07]} 19. Bh4
{[%clk 0:02:19.9]} 19... cxb2 {[%clk 0:02:06.4]} 20. Rab1 {[%clk 0:02:19.3]}
20... Bd4 {[%clk 0:02:05.9]} 21. Bb3 {[%clk 0:02:03.8]} 21... Bxb3 {[%clk
0:02:04.2]} 22. axb3 {[%clk 0:02:04.7]} 22... Rab8 {[%clk 0:01:56.6]} 23. Bf2
{[%clk 0:01:56.7]} 23... Bc3 {[%clk 0:01:41]} 24. Qc2 {[%clk 0:01:44.5]} 24...
Rfc8 {[%clk 0:01:38.4]} 25. h3 {[%clk 0:01:33.4]} 25... Qb7 {[%clk 0:01:17.4]}
26. Qe2 {[%clk 0:01:10.2]} 26... a5 {[%clk 0:01:07.4]} 27. Be1 {[%clk
0:01:00.3]} 27... Qxb3 {[%clk 0:01:04.3]} 28. Bxc3 {[%clk 0:00:57.9]} 28... Qxc3
{[%clk 0:01:02.6]} 29. Qa6 {[%clk 0:00:52]} 29... h6 {[%clk 0:00:48.5]} 30. Qa7
{[%clk 0:00:45.1]} 30... Qc7 {[%clk 0:00:45.1]} 31. Qf2 {[%clk 0:00:40.2]} 31...
a4 {[%clk 0:00:42.8]} 32. Rxb2 {[%clk 0:00:38.8]} 32... a3 {[%clk 0:00:32.7]}
33. Rxb8 {[%clk 0:00:36.9]} 33... Qxb8 {[%clk 0:00:30.5]} 34. Kh2 {[%clk
0:00:24.5]} 34... Qb2 {[%clk 0:00:19]} 35. Rd2 {[%clk 0:00:24.3]} 35... Qc3
{[%clk 0:00:17.2]} 36. Ra2 {[%clk 0:00:23.1]} 36... Rb8 {[%clk 0:00:14.3]} 37.
Qa7 {[%clk 0:00:19.7]} 37... Rb3 {[%clk 0:00:09]} 38. Qa8+ {[%clk 0:00:19.6]}
38... Kh7 {[%clk 0:00:08.8]} 39. Qa7 {[%clk 0:00:19.3]} 39... Kg6 {[%clk
0:00:05.9]} 40. Qa6+ {[%clk 0:00:18.5]} 40... f6 {[%clk 0:00:06.3]} 41. Qa8
{[%clk 0:00:18.5]} 41... Qe3 {[%clk 0:00:05]} 42. Qe8+ {[%clk 0:00:17.7]} 42...
Kh7 {[%clk 0:00:05]} 43. Qe6 {[%clk 0:00:14.4]} 43... Qf4+ {[%clk 0:00:02.8]}
44. Kg1 {[%clk 0:00:09.6]} 44... Rb1+ {[%clk 0:00:02.8]} 45. Kf2 {[%clk
0:00:09.8]} 45... Rb2+ {[%clk 0:00:02.7]} 46. Rxb2 {[%clk 0:00:08.8]} 46... axb2
{[%clk 0:00:03.6]} 47. Qb3 {[%clk 0:00:08.5]} 47... Qd2+ {[%clk 0:00:03.3]} 48.
Kg3 {[%clk 0:00:08.8]} 48... Qf4+ {[%clk 0:00:02.6]} 49. Kf2 {[%clk 0:00:06.9]}
49... Qc1 {[%clk 0:00:03.5]} 50. Qe6 {[%clk 0:00:05.3]} 50... b1=Q {[%clk
0:00:02.6]} 51. Qf5+ {[%clk 0:00:05.3]} 51... Kg8 {[%clk 0:00:02.9]} 52. Qe6+
{[%clk 0:00:05.5]} 52... Kf8 {[%clk 0:00:03.4]} 53. Qd6+ {[%clk 0:00:05]} 53...
Ke8 {[%clk 0:00:03.4]} 54. Qe6+ {[%clk 0:00:04.9]} 54... Kd8 {[%clk 0:00:04.1]}
55. Qg8+ {[%clk 0:00:04.2]} 55... Kc7 {[%clk 0:00:04.1]} 56. Qxg7+ {[%clk
0:00:04.6]} 56... Kb8 {[%clk 0:00:04.3]} 57. Qf8+ {[%clk 0:00:04.3]} 57... Qc8
{[%clk 0:00:04.6]} 58. Qxf6 {[%clk 0:00:04.4]} 58... Qc5+ {[%clk 0:00:04.4]} 59.
Kg3 {[%clk 0:00:03.8]} 59... Qe1+ {[%clk 0:00:04.1]} 60. Kg4 {[%clk 0:00:03.9]}
60... h5+ {[%clk 0:00:04]} 61. Kxh5 {[%clk 0:00:03.6]} 61... Qec3 {[%clk
0:00:03.5]} 62. Qd8+ {[%clk 0:00:03.3]} 62... Kb7 {[%clk 0:00:03.8]} 63. Qd7+
{[%clk 0:00:03.4]} 63... Kb6 {[%clk 0:00:04.1]} 64. Qd8+ {[%clk 0:00:03.4]}
64... Qc7 {[%clk 0:00:03.9]} 65. Qd5 {[%clk 0:00:03.1]} 65... Qh7+ {[%clk
0:00:03.7]} 66. Kg4 {[%clk 0:00:03.3]} 66... Qg6+ {[%clk 0:00:03.5]} 67. Kh4
{[%clk 0:00:03]} 67... Qe1+ {[%clk 0:00:04.2]} 68. g3 {[%clk 0:00:01.6]} 68...
Qexg3# {[%clk 0:00:05.1]} 0-1

[Event "Late-Titled-Tuesday-Blitz-January-16-2024"]
[Site "Chess.com"]
[Date "2024.01.16"]
[Round "7"]
[White "karinachess1"]
[Black "DeArron_Fox"]
[Result "1-0"]
[WhiteElo "2632"]
[BlackElo "2451"]
[TimeControl "180+1"]
[EndTime "15:18:51 PST"]
[Termination "karinachess1 won on time"]

1. d4 {[%clk 0:03:00.9]} 1... d5 {[%clk 0:03:00]} 2. c4 {[%clk 0:03:00.7]} 2...
e6 {[%clk 0:03:00]} 3. Nc3 {[%clk 0:03:00.5]} 3... Nf6 {[%clk 0:02:59.7]} 4.
cxd5 {[%clk 0:03:00.7]} 4... exd5 {[%clk 0:03:00.6]} 5. Bg5 {[%clk 0:03:00.6]}
5... c6 {[%clk 0:02:59.6]} 6. e3 {[%clk 0:03:01]} 6... Be7 {[%clk 0:03:00.2]} 7.
Bd3 {[%clk 0:03:01.3]} 7... Nbd7 {[%clk 0:03:00.8]} 8. h3 {[%clk 0:03:00.5]}
8... Nf8 {[%clk 0:02:59.7]} 9. Qc2 {[%clk 0:02:55.3]} 9... Ne6 {[%clk
0:02:59.3]} 10. Bh4 {[%clk 0:02:55.1]} 10... g6 {[%clk 0:02:57.6]} 11. Nge2
{[%clk 0:02:54.8]} 11... Ng7 {[%clk 0:02:57.5]} 12. g4 {[%clk 0:02:53.2]} 12...
h5 {[%clk 0:02:49.9]} 13. O-O-O {[%clk 0:02:37.1]} 13... Be6 {[%clk 0:02:23.7]}
14. f3 {[%clk 0:02:23.6]} 14... Nd7 {[%clk 0:01:07]} 15. Bg3 {[%clk 0:02:19.3]}
15... Nb6 {[%clk 0:01:00.3]} 16. b3 {[%clk 0:02:06.3]} 16... Bd6 {[%clk
0:00:52.5]} 17. Bxd6 {[%clk 0:01:56.6]} 17... Qxd6 {[%clk 0:00:53.4]} 18. e4
{[%clk 0:01:48.5]} 18... dxe4 {[%clk 0:00:48.1]} 19. fxe4 {[%clk 0:01:49.4]}
19... hxg4 {[%clk 0:00:43.4]} 20. hxg4 {[%clk 0:01:46]} 20... O-O-O {[%clk
0:00:43.8]} 21. g5 {[%clk 0:01:24.7]} 21... Nh5 {[%clk 0:00:29.5]} 22. Kb2
{[%clk 0:01:17.8]} 22... Kb8 {[%clk 0:00:27.9]} 23. Qd2 {[%clk 0:01:03.9]} 23...
a5 {[%clk 0:00:13.4]} 24. Bc2 {[%clk 0:00:38.5]} 24... Qb4 {[%clk 0:00:08.6]}
25. Ka1 {[%clk 0:00:34.8]} 25... a4 {[%clk 0:00:05.9]} 26. Nxa4 {[%clk
0:00:31.2]} 26... Qxd2 {[%clk 0:00:04.6]} 27. Rxd2 {[%clk 0:00:32.1]} 27... Nxa4
{[%clk 0:00:04.8]} 28. bxa4 {[%clk 0:00:33]} 28... Bc4 {[%clk 0:00:05.2]} 29.
Nc3 {[%clk 0:00:28.4]} 29... Ng3 {[%clk 0:00:03.7]} 30. Rxh8 {[%clk 0:00:22.8]}
30... Rxh8 {[%clk 0:00:04.6]} 31. d5 {[%clk 0:00:20.4]} 31... cxd5 {[%clk
0:00:04.2]} 32. exd5 {[%clk 0:00:21.3]} 32... Nf1 {[%clk 0:00:03.4]} 33. Rf2
{[%clk 0:00:19.5]} 33... Ne3 {[%clk 0:00:03.5]} 34. Be4 {[%clk 0:00:19.8]} 34...
Rh4 {[%clk 0:00:01.7]} 35. Rxf7 {[%clk 0:00:14.7]} 35... Rg4 {[%clk 0:00:02.1]}
36. Rf8+ {[%clk 0:00:11.3]} 36... Kc7 {[%clk 0:00:02]} 37. Rf7+ {[%clk
0:00:11.1]} 37... Kd6 {[%clk 0:00:02.5]} 38. Rf6+ {[%clk 0:00:11.3]} 38... Kc5
{[%clk 0:00:02.5]} 39. Rxg6 {[%clk 0:00:09.4]} 39... Rg1+ {[%clk 0:00:01.8]} 40.
Kb2 {[%clk 0:00:09.3]} 40... Kd4 {[%clk 0:00:02.7]} 41. Re6 {[%clk 0:00:05.5]}
41... Rf1 {[%clk 0:00:01.9]} 42. Nb5+ {[%clk 0:00:04.4]} 42... Bxb5 {[%clk
0:00:01.8]} 43. axb5 {[%clk 0:00:05.3]} 43... Rf2+ {[%clk 0:00:02.3]} 44. Ka3
{[%clk 0:00:05.7]} 44... Nc4+ {[%clk 0:00:01.8]} 45. Kb3 {[%clk 0:00:03.9]}
45... Rb2+ {[%clk 0:00:02.2]} 46. Ka4 {[%clk 0:00:04.1]} 46... Rxa2+ {[%clk
0:00:03.1]} 47. Kb3 {[%clk 0:00:04.7]} 47... Rb2+ {[%clk 0:00:02.7]} 48. Ka4
{[%clk 0:00:05.3]} 48... Nb6+ {[%clk 0:00:01.8]} 49. Rxb6 {[%clk 0:00:04.8]}
49... Ra2+ {[%clk 0:00:01.4]} 50. Kb3 {[%clk 0:00:04.4]} 50... Ra1 {[%clk
0:00:02]} 51. Re6 {[%clk 0:00:04.5]} 51... Re1 {[%clk 0:00:01.5]} 52. g6 {[%clk
0:00:04.7]} 52... Re3+ {[%clk 0:00:02.4]} 53. Kb4 {[%clk 0:00:04.8]} 53... Re2
{[%clk 0:00:01.5]} 54. Ka5 {[%clk 0:00:05.3]} 54... Kc5 {[%clk 0:00:01.5]} 55.
Ka4 {[%clk 0:00:04.7]} 55... Rb2 {[%clk 0:00:01.8]} 56. g7 {[%clk 0:00:04.3]}
56... Kc4 {[%clk 0:00:02.4]} 57. Ka3 {[%clk 0:00:04.5]} 57... Rb3+ {[%clk
0:00:02.4]} 58. Ka2 {[%clk 0:00:05]} 58... Rg3 {[%clk 0:00:03.1]} 59. Re7 {[%clk
0:00:04.5]} 59... Rg4 {[%clk 0:00:01.6]} 60. Kb2 {[%clk 0:00:03.2]} 60... Rg3
{[%clk 0:00:01.7]} 61. Kc2 {[%clk 0:00:03.5]} 61... Rg4 {[%clk 0:00:02.2]} 62.
Kd2 {[%clk 0:00:04]} 62... Kd4 {[%clk 0:00:02.3]} 63. Ke2 {[%clk 0:00:04.6]}
63... Kc5 {[%clk 0:00:02.4]} 64. Kf3 {[%clk 0:00:05.1]} 64... Rg5 {[%clk
0:00:03]} 65. Bh7 {[%clk 0:00:05.2]} 65... Kd6 {[%clk 0:00:03.6]} 66. Re6+
{[%clk 0:00:04.5]} 66... Kxd5 {[%clk 0:00:03.3]} 67. Rg6 {[%clk 0:00:05.2]}
67... Rf5+ {[%clk 0:00:01.8]} 68. Kg4 {[%clk 0:00:05.7]} 1-0

[Event "Late-Titled-Tuesday-Blitz-January-16-2024"]
[Site "Chess.com"]
[Date "2024.01.16"]
[Round "7"]
[White "rasmussvane"]
[Black "chika-lily"]
[Result "1-0"]
[WhiteElo "2983"]
[BlackElo "2758"]
[TimeControl "180+1"]
[EndTime "15:18:52 PST"]
[Termination "rasmussvane won on time"]

1. Nf3 {[%clk 0:03:00.9]} 1... d5 {[%clk 0:02:58.9]} 2. g3 {[%clk 0:02:54.3]}
2... g6 {[%clk 0:02:59.3]} 3. Bg2 {[%clk 0:02:53.8]} 3... Bg7 {[%clk 0:02:59.6]}
4. d4 {[%clk 0:02:51.9]} 4... Nf6 {[%clk 0:02:58]} 5. O-O {[%clk 0:02:51.9]}
5... O-O {[%clk 0:02:58.8]} 6. c4 {[%clk 0:02:52.2]} 6... c6 {[%clk 0:02:59]} 7.
Qb3 {[%clk 0:02:52.1]} 7... Qb6 {[%clk 0:02:54.9]} 8. Nc3 {[%clk 0:02:51]} 8...
Rd8 {[%clk 0:02:50.1]} 9. Bd2 {[%clk 0:02:50.2]} 9... Bf5 {[%clk 0:02:46.8]} 10.
Na4 {[%clk 0:02:47.5]} 10... Qc7 {[%clk 0:02:42.8]} 11. Bf4 {[%clk 0:02:36.9]}
11... Qc8 {[%clk 0:02:42.5]} 12. Rfc1 {[%clk 0:02:36.2]} 12... dxc4 {[%clk
0:02:33.3]} 13. Qa3 {[%clk 0:02:21.5]} 13... Nbd7 {[%clk 0:02:18.3]} 14. Ne5
{[%clk 0:02:05.8]} 14... Nb6 {[%clk 0:02:07]} 15. Nxb6 {[%clk 0:01:59.1]} 15...
axb6 {[%clk 0:02:05.5]} 16. Qxe7 {[%clk 0:01:58.5]} 16... Be6 {[%clk 0:01:56.3]}
17. Nxc4 {[%clk 0:01:52.7]} 17... Rd7 {[%clk 0:01:27.4]} 18. Qb4 {[%clk
0:01:37.3]} 18... Rxd4 {[%clk 0:01:25.6]} 19. Be5 {[%clk 0:01:27.5]} 19... Rxc4
{[%clk 0:01:21.6]} 20. Rxc4 {[%clk 0:01:26.6]} 20... Bxc4 {[%clk 0:01:22.5]} 21.
Qxc4 {[%clk 0:01:27]} 21... b5 {[%clk 0:01:23.2]} 22. Qd4 {[%clk 0:01:25.2]}
22... Qe6 {[%clk 0:01:22.9]} 23. a3 {[%clk 0:01:18.8]} 23... Re8 {[%clk
0:01:23]} 24. f4 {[%clk 0:01:08]} 24... h5 {[%clk 0:01:09.1]} 25. h3 {[%clk
0:01:02.7]} 25... h4 {[%clk 0:01:05.3]} 26. g4 {[%clk 0:01:00.7]} 26... Qe7
{[%clk 0:01:01.3]} 27. Rd1 {[%clk 0:00:58.4]} 27... Qe6 {[%clk 0:01:01.8]} 28.
Bf3 {[%clk 0:00:53.8]} 28... Qe7 {[%clk 0:00:53.4]} 29. Kg2 {[%clk 0:00:53.7]}
29... Ra8 {[%clk 0:00:49.1]} 30. Rd3 {[%clk 0:00:46.3]} 30... Ne8 {[%clk
0:00:46.9]} 31. Qd7 {[%clk 0:00:38.1]} 31... Qxd7 {[%clk 0:00:39.5]} 32. Rxd7
{[%clk 0:00:39]} 32... Bxe5 {[%clk 0:00:40.1]} 33. fxe5 {[%clk 0:00:39.8]} 33...
Rb8 {[%clk 0:00:40.7]} 34. e3 {[%clk 0:00:26.1]} 34... Ng7 {[%clk 0:00:40.6]}
35. Bd1 {[%clk 0:00:26.2]} 35... Ne6 {[%clk 0:00:31.8]} 36. Bb3 {[%clk
0:00:26.1]} 36... Ng5 {[%clk 0:00:32.5]} 37. e6 {[%clk 0:00:12.3]} 37... Nxe6
{[%clk 0:00:19.4]} 38. Bxe6 {[%clk 0:00:11.9]} 38... fxe6 {[%clk 0:00:20.3]} 39.
Kf3 {[%clk 0:00:10.7]} 39... Kf8 {[%clk 0:00:19.8]} 40. Ke4 {[%clk 0:00:09.3]}
40... Kg8 {[%clk 0:00:13.7]} 41. Ke5 {[%clk 0:00:09.2]} 41... Rf8 {[%clk
0:00:11.4]} 42. Ke4 {[%clk 0:00:04.2]} 42... Rf7 {[%clk 0:00:08]} 43. Rd6 {[%clk
0:00:04.1]} 43... Rf6 {[%clk 0:00:07.2]} 44. b3 {[%clk 0:00:04.3]} 44... Kg7
{[%clk 0:00:05.6]} 45. a4 {[%clk 0:00:04.8]} 45... Kf7 {[%clk 0:00:03.6]} 46.
axb5 {[%clk 0:00:04.6]} 46... cxb5 {[%clk 0:00:03.9]} 47. Rb6 {[%clk 0:00:04.9]}
47... Rf1 {[%clk 0:00:04]} 48. Rxb7+ {[%clk 0:00:04.3]} 48... Kf6 {[%clk
0:00:04.3]} 49. Rxb5 {[%clk 0:00:05.1]} 49... Rh1 {[%clk 0:00:04.2]} 50. g5+
{[%clk 0:00:05.3]} 50... Ke7 {[%clk 0:00:04.8]} 51. Rb7+ {[%clk 0:00:05.3]}
51... Kd6 {[%clk 0:00:05]} 52. Rg7 {[%clk 0:00:05.5]} 52... Rxh3 {[%clk
0:00:03.6]} 53. Rxg6 {[%clk 0:00:06.1]} 53... Rg3 {[%clk 0:00:04.2]} 54. Rg8
{[%clk 0:00:06.5]} 54... h3 {[%clk 0:00:03.7]} 55. Kf4 {[%clk 0:00:06.5]} 55...
Rg1 {[%clk 0:00:03.7]} 56. Rh8 {[%clk 0:00:06.8]} 56... Rb1 {[%clk 0:00:03]} 57.
Rxh3 {[%clk 0:00:06.4]} 57... Rxb3 {[%clk 0:00:03.8]} 58. Rh7 {[%clk 0:00:05.1]}
58... e5+ {[%clk 0:00:02.9]} 59. Ke4 {[%clk 0:00:04.2]} 59... Rb4+ {[%clk
0:00:03.1]} 60. Kf5 {[%clk 0:00:04.6]} 60... Rb1 {[%clk 0:00:03.6]} 61. g6
{[%clk 0:00:04.1]} 61... Rf1+ {[%clk 0:00:03.8]} 62. Kg5 {[%clk 0:00:04.7]}
62... Rg1+ {[%clk 0:00:04]} 63. Kf6 {[%clk 0:00:04.9]} 63... Rf1+ {[%clk
0:00:03.6]} 64. Kg7 {[%clk 0:00:05.4]} 64... Rg1 {[%clk 0:00:04.3]} 65. Kf7
{[%clk 0:00:03.9]} 65... Rf1+ {[%clk 0:00:03.1]} 66. Kg8 {[%clk 0:00:04.4]}
66... Rg1 {[%clk 0:00:03.8]} 67. g7 {[%clk 0:00:03.6]} 67... Kd5 {[%clk
0:00:04.1]} 68. Kh8 {[%clk 0:00:03.2]} 68... Ke4 {[%clk 0:00:03.4]} 69. Rh3
{[%clk 0:00:03.5]} 69... Rg5 {[%clk 0:00:01.2]} 70. g8=Q {[%clk 0:00:03.7]} 1-0